[Event "Live Chess"]
[Site "Chess.com"]
[Date "2023.09.16"]
[Round "-"]
[White "guto-XVI"]
[Black "Jonas_Rodrigues"]
[Result "1-0"]
[WhiteElo "1496"]
[BlackElo "1278"]
[TimeControl "900+5"]
[EndTime "16:20:46 PDT"]
[Termination "guto-XVI venceu por desistência"]

1. Nf3 {[%clk 0:15:04.2]} 1... Nc6 {[%clk 0:15:03.7]} 2. d4 {[%clk 0:15:08.2]}
2... d5 {[%clk 0:15:06.5]} 3. c4 {[%clk 0:15:12.1]} 3... Nf6 {[%clk 0:15:09.1]}
4. e3 {[%clk 0:15:16.5]} 4... e6 {[%clk 0:15:12.5]} 5. Bd3 {[%clk 0:15:20.9]}
5... Be7 {[%clk 0:15:16.5]} 6. O-O {[%clk 0:15:24]} 6... O-O {[%clk 0:15:21]} 7.
cxd5 {[%clk 0:15:24.5]} 7... exd5 {[%clk 0:15:22.9]} 8. Nc3 {[%clk 0:15:29.2]}
8... Re8 {[%clk 0:15:26.5]} 9. Bc2 {[%clk 0:15:33.3]} 9... Bb4 {[%clk
0:15:30.5]} 10. Re1 {[%clk 0:15:36.9]} 10... Bxc3 {[%clk 0:15:34.7]} 11. bxc3
{[%clk 0:15:41.5]} 11... b6 {[%clk 0:15:37.9]} 12. Qd3 {[%clk 0:15:45.6]} 12...
Bb7 {[%clk 0:15:40.6]} 13. Nd2 {[%clk 0:15:47.3]} 13... a5 {[%clk 0:15:44.1]}
14. e4 {[%clk 0:15:50.2]} 14... dxe4 {[%clk 0:15:47.9]} 15. Nxe4 {[%clk
0:15:55.1]} 15... Ba6 {[%clk 0:15:47.3]} 16. Qh3 {[%clk 0:15:55.6]} 16... Bc8
{[%clk 0:15:44.1]} 17. Qd3 {[%clk 0:15:56.7]} 17... Ba6 {[%clk 0:15:47.7]} 18.
Qh3 {[%clk 0:16:00.9]} 18... Bc8 {[%clk 0:15:51.8]} 19. Nxf6+ {[%clk 0:16:04.2]}
1-0

[Event "Live Chess"]
[Site "Chess.com"]
[Date "2023.09.16"]
[Round "-"]
[White "Cantalicioo"]
[Black "silvaaps"]
[Result "1-0"]
[WhiteElo "1585"]
[BlackElo "767"]
[TimeControl "900+5"]
[EndTime "16:20:54 PDT"]
[Termination "Cantalicioo venceu por desistência"]

1. d4 {[%clk 0:14:54.6]} 1... d5 {[%clk 0:15:02.7]} 2. c4 {[%clk 0:14:57]} 2...
Nf6 {[%clk 0:15:03.7]} 3. Nf3 {[%clk 0:15:00.8]} 3... Bg4 {[%clk 0:15:06.8]} 4.
e3 {[%clk 0:14:59.7]} 4... Bxf3 {[%clk 0:15:10.8]} 5. Qxf3 {[%clk 0:15:02.4]}
5... c6 {[%clk 0:15:11.6]} 6. Nc3 {[%clk 0:15:05.6]} 6... e6 {[%clk 0:15:06]} 7.
cxd5 {[%clk 0:15:06.3]} 7... cxd5 {[%clk 0:15:06.1]} 8. Bb5+ {[%clk 0:14:53.9]}
8... Nbd7 {[%clk 0:15:06.1]} 9. O-O {[%clk 0:14:47.9]} 9... a6 {[%clk
0:15:09.3]} 10. Ba4 {[%clk 0:14:45.5]} 10... b5 {[%clk 0:15:12.9]} 11. Bc2
{[%clk 0:14:43.2]} 11... Qc7 {[%clk 0:15:14.2]} 12. e4 {[%clk 0:14:44.1]} 12...
dxe4 {[%clk 0:15:14.1]} 13. Bxe4 {[%clk 0:14:48.7]} 13... O-O-O {[%clk
0:15:16.4]} 14. Bf4 {[%clk 0:14:44.8]} 14... e5 {[%clk 0:15:10.5]} 15. dxe5
{[%clk 0:14:47.2]} 15... Nxe5 {[%clk 0:15:12.8]} 16. Bxe5 {[%clk 0:14:49.1]}
16... Qxe5 {[%clk 0:15:16.8]} 17. Bb7+ {[%clk 0:14:44.5]} 17... Kd7 {[%clk
0:15:20]} 18. Rad1+ {[%clk 0:14:45.6]} 18... Ke7 {[%clk 0:15:18.8]} 19. Rde1
{[%clk 0:14:34.4]} 1-0

[Event "Live Chess"]
[Site "Chess.com"]
[Date "2023.09.16"]
[Round "-"]
[White "Japaawz"]
[Black "Lucas-LGM"]
[Result "0-1"]
[WhiteElo "413"]
[BlackElo "1569"]
[TimeControl "900+5"]
[EndTime "16:20:59 PDT"]
[Termination "Lucas-LGM venceu por xeque-mate"]

1. e3 {[%clk 0:15:01.9]} 1... g6 {[%clk 0:15:01.8]} 2. Nh3 {[%clk 0:15:03.1]}
2... Bg7 {[%clk 0:15:05.3]} 3. Be2 {[%clk 0:15:05.8]} 3... e5 {[%clk 0:15:09.2]}
4. O-O {[%clk 0:15:10]} 4... Ne7 {[%clk 0:15:13.4]} 5. Ng5 {[%clk 0:15:07.4]}
5... O-O {[%clk 0:15:17.1]} 6. Bc4 {[%clk 0:15:09]} 6... d5 {[%clk 0:15:19.6]}
7. Bb3 {[%clk 0:15:10.3]} 7... Nec6 {[%clk 0:15:20.5]} 8. Qf3 {[%clk 0:15:05.6]}
8... Qxg5 {[%clk 0:15:21.4]} 9. Qxd5 {[%clk 0:15:04.3]} 9... Be6 {[%clk
0:15:22.8]} 10. Qc5 {[%clk 0:15:03]} 10... Bxb3 {[%clk 0:15:20.5]} 11. axb3
{[%clk 0:15:05.4]} 11... Nd7 {[%clk 0:15:24]} 12. Qb5 {[%clk 0:15:03.1]} 12...
Qf6 {[%clk 0:15:24.9]} 13. Nc3 {[%clk 0:15:06.1]} 13... b6 {[%clk 0:15:27.7]}
14. Ra6 {[%clk 0:15:07.7]} 14... Nc5 {[%clk 0:15:27.6]} 15. Nd5 {[%clk
0:15:10.3]} 15... Qd6 {[%clk 0:15:27.7]} 16. e4 {[%clk 0:15:11.6]} 16... Nxa6
{[%clk 0:15:30.9]} 17. Qxa6 {[%clk 0:14:57.7]} 17... Nb4 {[%clk 0:15:33.9]} 18.
Nxb4 {[%clk 0:14:57.8]} 18... Qxb4 {[%clk 0:15:28.5]} 19. Re1 {[%clk 0:14:51.2]}
19... Bh6 {[%clk 0:15:24.5]} 20. Qb7 {[%clk 0:14:52.4]} 20... Bxd2 {[%clk
0:15:26.7]} 21. Bxd2 {[%clk 0:14:53.2]} 21... Qxd2 {[%clk 0:15:30.1]} 22. Rf1
{[%clk 0:14:54]} 22... c5 {[%clk 0:15:26.1]} 23. h4 {[%clk 0:14:55.5]} 23...
Qxc2 {[%clk 0:15:24.5]} 24. g4 {[%clk 0:14:50.2]} 24... Qxb2 {[%clk 0:15:26.6]}
25. Rd1 {[%clk 0:14:52.8]} 25... Rfd8 {[%clk 0:15:21]} 26. Rxd8+ {[%clk
0:14:51.8]} 26... Rxd8 {[%clk 0:15:24.4]} 27. h5 {[%clk 0:14:48.2]} 27... Rd1+
{[%clk 0:15:23.8]} 28. Kg2 {[%clk 0:14:50.7]} 28... gxh5 {[%clk 0:15:16.5]} 29.
gxh5 {[%clk 0:14:52.6]} 29... Qd2 {[%clk 0:15:09]} 30. h6 {[%clk 0:14:56.3]}
30... Qxh6 {[%clk 0:15:10.2]} 31. Qxa7 {[%clk 0:14:57.7]} 31... Qg5+ {[%clk
0:15:13.4]} 32. Kf3 {[%clk 0:15:00.4]} 32... Qf4+ {[%clk 0:15:13.7]} 33. Ke2
{[%clk 0:15:01.9]} 33... Rd2+ {[%clk 0:15:14.4]} 34. Ke1 {[%clk 0:15:04.2]}
34... Qxf2# {[%clk 0:15:18.8]} 0-1

[Event "Live Chess"]
[Site "Chess.com"]
[Date "2023.09.16"]
[Round "-"]
[White "ViniciusBritoFc"]
[Black "Luisgustavo100"]
[Result "1-0"]
[WhiteElo "1194"]
[BlackElo "944"]
[TimeControl "900+5"]
[EndTime "16:21:31 PDT"]
[Termination "ViniciusBritoFc venceu por xeque-mate"]

1. d4 {[%clk 0:15:02.4]} 1... d5 {[%clk 0:15:01.5]} 2. Nc3 {[%clk 0:15:03.4]}
2... Nf6 {[%clk 0:15:01.6]} 3. Bg5 {[%clk 0:15:06.2]} 3... e6 {[%clk 0:15:02.5]}
4. Bxf6 {[%clk 0:15:08.7]} 4... Qxf6 {[%clk 0:15:03.7]} 5. Nf3 {[%clk
0:15:13.4]} 5... c5 {[%clk 0:14:54.3]} 6. e3 {[%clk 0:15:00.5]} 6... cxd4 {[%clk
0:14:52.5]} 7. exd4 {[%clk 0:15:05.4]} 7... Bb4 {[%clk 0:14:54.7]} 8. Bb5+
{[%clk 0:14:41.1]} 8... Nc6 {[%clk 0:14:51.3]} 9. Bxc6+ {[%clk 0:14:45]} 9...
bxc6 {[%clk 0:14:54.8]} 10. Qd3 {[%clk 0:14:45.1]} 10... O-O {[%clk 0:14:42.1]}
11. O-O {[%clk 0:14:47.8]} 11... Bb7 {[%clk 0:14:26.5]} 12. Ne5 {[%clk
0:14:49.2]} 12... Qe7 {[%clk 0:13:57.6]} 13. Na4 {[%clk 0:14:43.5]} 13... f6
{[%clk 0:13:36]} 14. Nf3 {[%clk 0:14:39.5]} 14... a5 {[%clk 0:13:22.2]} 15. c3
{[%clk 0:14:41.1]} 15... Bd6 {[%clk 0:13:13]} 16. g3 {[%clk 0:14:45.1]} 16...
Ba6 {[%clk 0:12:45.6]} 17. Qc2 {[%clk 0:14:08.6]} 17... Bxf1 {[%clk 0:12:44.3]}
18. Rxf1 {[%clk 0:14:13.5]} 18... c5 {[%clk 0:12:26.1]} 19. dxc5 {[%clk
0:14:09.9]} 19... Bxc5 {[%clk 0:12:29.4]} 20. Re1 {[%clk 0:14:10.9]} 20... Rfe8
{[%clk 0:12:18.9]} 21. a3 {[%clk 0:14:13.9]} 21... Ba7 {[%clk 0:11:47.5]} 22. h4
{[%clk 0:14:12.3]} 22... Rad8 {[%clk 0:11:17.8]} 23. b4 {[%clk 0:13:59]} 23...
axb4 {[%clk 0:11:16.9]} 24. axb4 {[%clk 0:14:03.7]} 24... Rc8 {[%clk 0:11:06.5]}
25. b5 {[%clk 0:14:06.6]} 25... d4 {[%clk 0:11:06.2]} 26. c4 {[%clk 0:14:08.4]}
26... Qb4 {[%clk 0:10:47.7]} 27. Rc1 {[%clk 0:13:50.8]} 27... e5 {[%clk
0:10:15.2]} 28. b6 {[%clk 0:13:47.3]} 28... Bxb6 {[%clk 0:10:12.1]} 29. Nxb6
{[%clk 0:13:50.2]} 29... Qxb6 {[%clk 0:10:15.4]} 30. Rb1 {[%clk 0:13:54.3]}
30... Qe6 {[%clk 0:10:03.3]} 31. Rb4 {[%clk 0:13:53.7]} 31... Rc7 {[%clk
0:09:40.7]} 32. c5 {[%clk 0:13:56.5]} 32... Rec8 {[%clk 0:09:39.9]} 33. Rb5
{[%clk 0:14:00.6]} 33... Qd5 {[%clk 0:09:18.7]} 34. Qa4 {[%clk 0:13:32.9]} 34...
Rxc5 {[%clk 0:09:05.9]} 35. Rxc5 {[%clk 0:13:37.8]} 35... Rxc5 {[%clk
0:09:09.2]} 36. Qe8# {[%clk 0:13:39.6]} 1-0

[Event "Live Chess"]
[Site "Chess.com"]
[Date "2023.09.16"]
[Round "-"]
[White "Gustavoksbr"]
[Black "Tercette"]
[Result "1-0"]
[WhiteElo "1908"]
[BlackElo "157"]
[TimeControl "900+5"]
[EndTime "16:22:06 PDT"]
[Termination "Gustavoksbr venceu por xeque-mate"]

1. e4 {[%clk 0:15:03.6]} 1... e5 {[%clk 0:15:01.7]} 2. Nf3 {[%clk 0:15:06]} 2...
Bc5 {[%clk 0:14:59]} 3. Nxe5 {[%clk 0:15:07.1]} 3... d6 {[%clk 0:15:01.8]} 4.
Nf3 {[%clk 0:14:25.7]} 4... d5 {[%clk 0:15:00.1]} 5. exd5 {[%clk 0:14:22.5]}
5... Bg4 {[%clk 0:14:59.6]} 6. Be2 {[%clk 0:14:16.5]} 6... Nf6 {[%clk
0:15:02.3]} 7. d4 {[%clk 0:14:15.8]} 7... O-O {[%clk 0:15:04]} 8. dxc5 {[%clk
0:14:19.5]} 8... Nxd5 {[%clk 0:15:06.8]} 9. O-O {[%clk 0:14:22]} 9... Nc6 {[%clk
0:15:05.6]} 10. c4 {[%clk 0:14:24.2]} 10... Nd4 {[%clk 0:14:59.3]} 11. Qxd4
{[%clk 0:14:22.7]} 11... b6 {[%clk 0:14:58.8]} 12. Qxg4 {[%clk 0:14:17.1]} 12...
bxc5 {[%clk 0:15:02]} 13. Bh6 {[%clk 0:14:17.7]} 13... Nf6 {[%clk 0:14:59.8]}
14. Qxg7# {[%clk 0:14:20.5]} 1-0

[Event "Live Chess"]
[Site "Chess.com"]
[Date "2023.09.16"]
[Round "-"]
[White "Fellipezin"]
[Black "Gabriel0298"]
[Result "0-1"]
[WhiteElo "1593"]
[BlackElo "1601"]
[TimeControl "900+5"]
[EndTime "16:22:09 PDT"]
[Termination "Gabriel0298 venceu por desistência"]

1. c4 {[%clk 0:14:48.9]} 1... e6 {[%clk 0:15:04.9]} 2. g3 {[%clk 0:14:46.3]}
2... d5 {[%clk 0:15:09.8]} 3. cxd5 {[%clk 0:14:49.9]} 3... exd5 {[%clk
0:15:14.7]} 4. Bg2 {[%clk 0:14:53.2]} 4... Nf6 {[%clk 0:15:17.4]} 5. d4 {[%clk
0:14:55.7]} 5... c6 {[%clk 0:15:21.1]} 6. Nf3 {[%clk 0:14:57.7]} 6... Bb4+
{[%clk 0:15:20.7]} 7. Bd2 {[%clk 0:14:59.4]} 7... Bxd2+ {[%clk 0:15:23.3]} 8.
Nbxd2 {[%clk 0:14:55.1]} 8... O-O {[%clk 0:15:28.2]} 9. O-O {[%clk 0:14:58]}
9... Bg4 {[%clk 0:15:31.8]} 10. e3 {[%clk 0:14:59.4]} 10... Nbd7 {[%clk
0:15:34.4]} 11. Qb3 {[%clk 0:15:01.3]} 11... Qc7 {[%clk 0:15:36.7]} 12. Rfe1
{[%clk 0:14:46.1]} 12... Rfe8 {[%clk 0:15:38.9]} 13. h3 {[%clk 0:14:38.8]} 13...
Bh5 {[%clk 0:15:40.2]} 14. g4 {[%clk 0:13:54.8]} 14... Bg6 {[%clk 0:15:43.2]}
15. Nh4 {[%clk 0:13:56.3]} 15... Be4 {[%clk 0:15:44.9]} 16. Nxe4 {[%clk
0:13:59.1]} 16... Nxe4 {[%clk 0:15:49.8]} 17. Bxe4 {[%clk 0:14:01.5]} 17... Rxe4
{[%clk 0:15:54.7]} 18. Qd3 {[%clk 0:12:59.4]} 18... h5 {[%clk 0:15:54.1]} 19. f3
{[%clk 0:12:47.3]} 19... Qg3+ {[%clk 0:15:56.8]} 20. Kf1 {[%clk 0:12:37.4]}
20... Qxh3+ {[%clk 0:16:00.9]} 21. Ng2 {[%clk 0:12:41.2]} 21... Qxf3+ {[%clk
0:16:03]} 22. Kg1 {[%clk 0:12:42.7]} 22... Rxg4 {[%clk 0:16:01.2]} 23. Re2
{[%clk 0:12:33.1]} 23... Nf6 {[%clk 0:16:02.1]} 24. Rf2 {[%clk 0:12:31.6]} 24...
Qh3 {[%clk 0:16:02.9]} 25. Qe2 {[%clk 0:12:14]} 25... Ne4 {[%clk 0:16:05.6]} 26.
Rf3 {[%clk 0:12:17.5]} 26... Ng3 {[%clk 0:16:00.8]} 27. Kf2 {[%clk 0:11:29.7]}
27... Qxg2+ {[%clk 0:15:23.5]} 0-1

[Event "Live Chess"]
[Site "Chess.com"]
[Date "2023.09.16"]
[Round "-"]
[White "GilbertoGOFaria"]
[Black "Miinero"]
[Result "0-1"]
[WhiteElo "1626"]
[BlackElo "1931"]
[TimeControl "900+5"]
[EndTime "16:24:16 PDT"]
[Termination "Miinero venceu por xeque-mate"]

1. c4 {[%clk 0:15:02.7]} 1... e5 {[%clk 0:14:55.9]} 2. Nc3 {[%clk 0:15:04.7]}
2... f5 {[%clk 0:14:54.6]} 3. e3 {[%clk 0:15:03.7]} 3... Nf6 {[%clk 0:14:58.6]}
4. d4 {[%clk 0:15:01.7]} 4... e4 {[%clk 0:15:01.1]} 5. Be2 {[%clk 0:14:53.8]}
5... Bb4 {[%clk 0:15:02.4]} 6. Nh3 {[%clk 0:14:55.7]} 6... O-O {[%clk
0:15:03.9]} 7. Nf4 {[%clk 0:14:59.1]} 7... c6 {[%clk 0:14:58.9]} 8. f3 {[%clk
0:14:58.8]} 8... Bxc3+ {[%clk 0:15:00]} 9. bxc3 {[%clk 0:15:02.6]} 9... d5
{[%clk 0:15:02.5]} 10. Qb3 {[%clk 0:15:03.6]} 10... Kh8 {[%clk 0:14:55.1]} 11.
Ba3 {[%clk 0:15:01.1]} 11... Re8 {[%clk 0:14:55.8]} 12. Kd2 {[%clk 0:14:54.2]}
12... dxc4 {[%clk 0:14:55.1]} 13. Bxc4 {[%clk 0:14:57.4]} 13... b5 {[%clk
0:14:55.2]} 14. Bf7 {[%clk 0:15:00.7]} 14... Na6 {[%clk 0:14:43.5]} 15. Bxe8
{[%clk 0:14:56.9]} 15... Qxe8 {[%clk 0:14:48.4]} 16. Nh3 {[%clk 0:12:41.8]}
16... exf3 {[%clk 0:14:45.3]} 17. Ng5 {[%clk 0:12:23.3]} 17... Nd5 {[%clk
0:14:45.1]} 18. Rae1 {[%clk 0:12:19.8]} 18... fxg2 {[%clk 0:14:42.8]} 19. Rhg1
{[%clk 0:12:22.8]} 19... h6 {[%clk 0:14:41.1]} 20. Nf3 {[%clk 0:12:21.6]} 20...
Qe4 {[%clk 0:14:26.6]} 21. Ne5 {[%clk 0:12:16.6]} 21... f4 {[%clk 0:14:10.5]}
22. exf4 {[%clk 0:12:20.1]} 22... Qxf4+ {[%clk 0:14:13.3]} 23. Ke2 {[%clk
0:11:41.6]} 23... Qe3+ {[%clk 0:14:07.3]} 24. Kd1 {[%clk 0:11:43.2]} 24... Qxc3
{[%clk 0:10:35.3]} 25. Qxc3 {[%clk 0:10:31.5]} 25... Nxc3+ {[%clk 0:10:37.3]}
26. Kc2 {[%clk 0:10:31.6]} 26... Nd5 {[%clk 0:10:26.4]} 27. Ng6+ {[%clk
0:10:15.5]} 27... Kh7 {[%clk 0:10:28]} 28. Rxg2 {[%clk 0:10:19.5]} 28... Bf5+
{[%clk 0:10:30.2]} 29. Kb3 {[%clk 0:10:20.9]} 29... Bxg6 {[%clk 0:10:31.4]} 30.
Reg1 {[%clk 0:10:14.1]} 30... Nf4 {[%clk 0:10:24.2]} 31. Rg4 {[%clk 0:10:15.8]}
31... Bf7+ {[%clk 0:10:24.6]} 32. Kc2 {[%clk 0:10:03.7]} 32... g5 {[%clk
0:10:24.9]} 33. Bd6 {[%clk 0:10:02.3]} 33... Nd5 {[%clk 0:10:10.2]} 34. Kb2
{[%clk 0:09:54.8]} 34... Re8 {[%clk 0:10:12.6]} 35. Be5 {[%clk 0:09:54.4]} 35...
Nab4 {[%clk 0:10:12.5]} 36. Ka3 {[%clk 0:09:40.3]} 36... Nc2+ {[%clk 0:10:05.9]}
37. Kb2 {[%clk 0:09:43.8]} 37... Nce3 {[%clk 0:10:08.8]} 38. R4g3 {[%clk
0:09:39.8]} 38... Nc4+ {[%clk 0:10:09.8]} 39. Ka1 {[%clk 0:09:41.8]} 39... Nxe5
{[%clk 0:10:09.3]} 40. h4 {[%clk 0:09:44.3]} 40... Ng6 {[%clk 0:09:55.9]} 41.
hxg5 {[%clk 0:09:44.9]} 41... hxg5 {[%clk 0:09:51.1]} 42. Rf3 {[%clk 0:09:42.2]}
42... Kg7 {[%clk 0:09:48.7]} 43. Rgf1 {[%clk 0:09:45.3]} 43... Ngf4 {[%clk
0:09:49.6]} 44. Rg3 {[%clk 0:09:37.5]} 44... Kg6 {[%clk 0:09:51.1]} 45. Kb1
{[%clk 0:09:33.9]} 45... Re2 {[%clk 0:09:49.9]} 46. Rfg1 {[%clk 0:09:18.1]}
46... Ne6 {[%clk 0:09:51.9]} 47. Ra3 {[%clk 0:09:01.6]} 47... Nxd4 {[%clk
0:09:47.8]} 48. Rxa7 {[%clk 0:09:01.7]} 48... Nc3+ {[%clk 0:09:51.2]} 49. Kc1
{[%clk 0:09:02.3]} 49... Nxa2+ {[%clk 0:09:47.4]} 50. Kd1 {[%clk 0:09:04]} 50...
Nc3+ {[%clk 0:09:48.7]} 51. Kc1 {[%clk 0:09:05.4]} 51... Nb3# {[%clk 0:09:51.9]}
0-1

[Event "Live Chess"]
[Site "Chess.com"]
[Date "2023.09.16"]
[Round "-"]
[White "silvaaps"]
[Black "guto-XVI"]
[Result "1-0"]
[WhiteElo "783"]
[BlackElo "1465"]
[TimeControl "900+5"]
[EndTime "16:24:24 PDT"]
[Termination "silvaaps venceu por desistência"]

1. e4 {[%clk 0:15:04.7]} 1... c5 {[%clk 0:15:04.2]} 2. Bc4 {[%clk 0:15:06.4]}
2... Nc6 {[%clk 0:15:08]} 3. Qf3 {[%clk 0:15:10.5]} 3... e6 {[%clk 0:15:12.1]}
4. Bb5 {[%clk 0:15:12.4]} 4... Nd4 {[%clk 0:15:15.3]} 5. Qd3 {[%clk 0:15:16]}
5... a6 {[%clk 0:15:17.9]} 6. Bc4 {[%clk 0:15:18.3]} 6... b5 {[%clk 0:15:20.2]}
7. Bb3 {[%clk 0:15:20.9]} 7... Nxb3 {[%clk 0:15:21.8]} 8. Qxb3 {[%clk
0:15:24.7]} 8... Bb7 {[%clk 0:15:26]} 9. f3 {[%clk 0:15:23.9]} 9... Be7 {[%clk
0:15:27.6]} 10. Ne2 {[%clk 0:15:25.5]} 10... Nf6 {[%clk 0:15:31.4]} 11. O-O
{[%clk 0:15:29.7]} 11... h5 {[%clk 0:15:34.2]} 12. d3 {[%clk 0:15:33.1]} 12...
Qc7 {[%clk 0:15:38.2]} 13. Bf4 {[%clk 0:15:36.5]} 13... Bd6 {[%clk 0:15:41.4]}
14. Bxd6 {[%clk 0:15:40.5]} 14... Qxd6 {[%clk 0:15:46.3]} 15. Nd2 {[%clk
0:15:42.8]} 15... h4 {[%clk 0:15:49.3]} 16. f4 {[%clk 0:15:45.7]} 16... e5
{[%clk 0:15:48.9]} 17. f5 {[%clk 0:15:46.7]} 17... h3 {[%clk 0:15:24.1]} 18. g3
{[%clk 0:15:49.8]} 18... Bc6 {[%clk 0:15:15.7]} 19. c4 {[%clk 0:15:53.5]} 19...
b4 {[%clk 0:15:13.1]} 20. a3 {[%clk 0:15:55.5]} 20... Qc7 {[%clk 0:15:09.4]} 21.
axb4 {[%clk 0:15:58.8]} 21... Qb7 {[%clk 0:15:11.5]} 22. bxc5 {[%clk 0:16:00.6]}
22... Qxb3 {[%clk 0:15:07.1]} 23. Nxb3 {[%clk 0:16:04.2]} 23... Rb8 {[%clk
0:15:11.4]} 24. Na5 {[%clk 0:16:07.2]} 24... Rxb2 {[%clk 0:15:14.2]} 25. Nxc6
{[%clk 0:16:09.5]} 25... dxc6 {[%clk 0:15:19.1]} 26. Rfe1 {[%clk 0:16:10.7]}
26... Ng4 {[%clk 0:15:20.4]} 27. Rxa6 {[%clk 0:16:14.4]} 27... Rd2 {[%clk
0:15:02.1]} 28. Ra8+ {[%clk 0:16:17.1]} 1-0

[Event "Live Chess"]
[Site "Chess.com"]
[Date "2023.09.16"]
[Round "-"]
[White "FerreiraPedro"]
[Black "Joasgodoy"]
[Result "1-0"]
[WhiteElo "1397"]
[BlackElo "675"]
[TimeControl "900+5"]
[EndTime "16:26:26 PDT"]
[Termination "FerreiraPedro venceu por desistência"]

1. e4 {[%clk 0:15:02.6]} 1... Nc6 {[%clk 0:14:57.5]} 2. d4 {[%clk 0:15:05.8]}
2... d5 {[%clk 0:15:00]} 3. Nc3 {[%clk 0:15:06]} 3... Nf6 {[%clk 0:14:37.8]} 4.
e5 {[%clk 0:15:07.1]} 4... Ne4 {[%clk 0:14:36.8]} 5. Nxe4 {[%clk 0:15:09.9]}
5... dxe4 {[%clk 0:14:38.5]} 6. Be3 {[%clk 0:15:07.8]} 6... e6 {[%clk 0:14:16]}
7. Bb5 {[%clk 0:15:06.5]} 7... Bd7 {[%clk 0:13:53.9]} 8. c4 {[%clk 0:15:06.5]}
8... Nb4 {[%clk 0:13:37.6]} 9. Bxd7+ {[%clk 0:14:52.8]} 9... Qxd7 {[%clk
0:13:34.8]} 10. Qb3 {[%clk 0:14:55.2]} 10... Nd3+ {[%clk 0:12:58.7]} 11. Kd2
{[%clk 0:14:58.3]} 11... Bc5 {[%clk 0:12:31.5]} 12. Ne2 {[%clk 0:14:43.1]} 12...
Bxd4 {[%clk 0:12:09.7]} 13. Nxd4 {[%clk 0:14:34.5]} 13... Nc5 {[%clk 0:11:42]}
14. Qb5 {[%clk 0:14:23.5]} 14... Qxb5 {[%clk 0:11:29.6]} 15. Nxb5 {[%clk
0:14:27.4]} 15... O-O-O+ {[%clk 0:11:20.9]} 16. Kc2 {[%clk 0:14:21.1]} 16... Rd3
{[%clk 0:10:46.7]} 17. Bxc5 {[%clk 0:14:22]} 17... Rhd8 {[%clk 0:10:41.5]} 18.
Rhd1 {[%clk 0:14:20.3]} 18... Rxd1 {[%clk 0:10:42.7]} 19. Rxd1 {[%clk
0:14:25.2]} 19... Rxd1 {[%clk 0:10:40.4]} 20. Kxd1 {[%clk 0:14:30.1]} 1-0

[Event "Live Chess"]
[Site "Chess.com"]
[Date "2023.09.16"]
[Round "-"]
[White "Japaawz"]
[Black "Luisgustavo100"]
[Result "0-1"]
[WhiteElo "412"]
[BlackElo "945"]
[TimeControl "900+5"]
[EndTime "16:26:36 PDT"]
[Termination "Luisgustavo100 venceu por xeque-mate"]

1. c3 {[%clk 0:15:00.2]} 1... c5 {[%clk 0:14:51.8]} 2. Na3 {[%clk 0:14:56.1]}
2... d5 {[%clk 0:14:53.5]} 3. g3 {[%clk 0:14:50.7]} 3... Nf6 {[%clk 0:14:47.8]}
4. Nf3 {[%clk 0:14:53.5]} 4... Nc6 {[%clk 0:14:48.2]} 5. d4 {[%clk 0:14:52.7]}
5... cxd4 {[%clk 0:14:46]} 6. cxd4 {[%clk 0:14:57.6]} 6... Ne4 {[%clk
0:14:15.9]} 7. e3 {[%clk 0:14:45.3]} 7... e6 {[%clk 0:14:00.2]} 8. Bd3 {[%clk
0:14:45]} 8... Qf6 {[%clk 0:13:37.3]} 9. Bb5 {[%clk 0:14:33.8]} 9... Bb4+ {[%clk
0:13:17.5]} 10. Bd2 {[%clk 0:14:01.7]} 10... Bxd2+ {[%clk 0:13:20.4]} 11. Nxd2
{[%clk 0:14:01.8]} 11... Qxf2# {[%clk 0:13:19.6]} 0-1

[Event "Live Chess"]
[Site "Chess.com"]
[Date "2023.09.16"]
[Round "-"]
[White "Jonas_Rodrigues"]
[Black "Cantalicioo"]
[Result "0-1"]
[WhiteElo "1275"]
[BlackElo "1603"]
[TimeControl "900+5"]
[EndTime "16:27:37 PDT"]
[Termination "Cantalicioo venceu por xeque-mate"]

1. e4 {[%clk 0:15:04.2]} 1... c5 {[%clk 0:14:58.2]} 2. d4 {[%clk 0:15:07.2]}
2... cxd4 {[%clk 0:15:01.2]} 3. Bc4 {[%clk 0:15:11.7]} 3... Nc6 {[%clk
0:15:00.6]} 4. Nf3 {[%clk 0:15:15.1]} 4... e5 {[%clk 0:14:58.2]} 5. O-O {[%clk
0:15:18.8]} 5... Nf6 {[%clk 0:15:01.1]} 6. Re1 {[%clk 0:15:20.5]} 6... Bc5
{[%clk 0:15:03.3]} 7. c3 {[%clk 0:15:23.2]} 7... O-O {[%clk 0:15:04.6]} 8. cxd4
{[%clk 0:15:26.3]} 8... Nxd4 {[%clk 0:15:06.6]} 9. Nxe5 {[%clk 0:15:28.3]} 9...
d6 {[%clk 0:14:48]} 10. Nf3 {[%clk 0:15:27.6]} 10... Bg4 {[%clk 0:14:44.7]} 11.
Re3 {[%clk 0:15:23.3]} 11... Nc2 {[%clk 0:14:32.1]} 12. Qxc2 {[%clk 0:15:26.8]}
12... Bxe3 {[%clk 0:14:35]} 13. fxe3 {[%clk 0:15:30.9]} 13... Bxf3 {[%clk
0:14:38.8]} 14. gxf3 {[%clk 0:15:34.9]} 14... Re8 {[%clk 0:14:42.4]} 15. Nc3
{[%clk 0:15:31.8]} 15... Rc8 {[%clk 0:14:25.7]} 16. Nd5 {[%clk 0:15:22.4]} 16...
Nxd5 {[%clk 0:14:24.3]} 17. exd5 {[%clk 0:15:24.9]} 17... b5 {[%clk 0:14:23.8]}
18. Bd2 {[%clk 0:15:17.2]} 18... Rxc4 {[%clk 0:14:23]} 19. Bc3 {[%clk
0:15:19.8]} 19... b4 {[%clk 0:14:24.1]} 20. Qb3 {[%clk 0:15:21.2]} 20... Qg5+
{[%clk 0:14:19.2]} 21. Kf2 {[%clk 0:15:20.4]} 21... Qxe3+ {[%clk 0:14:22.3]} 22.
Kg3 {[%clk 0:15:24.1]} 22... Qg5+ {[%clk 0:12:29.5]} 23. Kf2 {[%clk 0:15:27.4]}
23... Rh4 {[%clk 0:12:29.1]} 24. Bxb4 {[%clk 0:15:08.4]} 24... Rxh2+ {[%clk
0:12:28.7]} 25. Kf1 {[%clk 0:15:10.2]} 25... Qg2# {[%clk 0:12:32.3]} 0-1

[Event "Live Chess"]
[Site "Chess.com"]
[Date "2023.09.16"]
[Round "-"]
[White "guto-XVI"]
[Black "GilbertoGOFaria"]
[Result "0-1"]
[WhiteElo "1456"]
[BlackElo "1635"]
[TimeControl "900+5"]
[EndTime "16:27:42 PDT"]
[Termination "GilbertoGOFaria venceu por desistência"]

1. Nf3 {[%clk 0:15:04.8]} 1... d5 {[%clk 0:14:52.5]} 2. c4 {[%clk 0:15:08.4]}
2... dxc4 {[%clk 0:14:53.2]} 3. e3 {[%clk 0:15:12.7]} 3... g6 {[%clk 0:14:52.8]}
4. Bxc4 {[%clk 0:15:16.1]} 4... Bg7 {[%clk 0:14:57.2]} 5. Nc3 {[%clk 0:15:20.7]}
5... Nf6 {[%clk 0:15:00.6]} 6. d4 {[%clk 0:15:25.1]} 6... O-O {[%clk 0:15:04.9]}
7. O-O {[%clk 0:15:29.4]} 7... Bf5 {[%clk 0:14:56.6]} 8. Nh4 {[%clk 0:15:31.7]}
8... Bd7 {[%clk 0:14:56.5]} 9. Bb3 {[%clk 0:15:35.4]} 9... c6 {[%clk 0:14:54.2]}
10. Bc2 {[%clk 0:15:29.5]} 10... Qc7 {[%clk 0:14:20.2]} 11. e4 {[%clk
0:15:25.5]} 11... e5 {[%clk 0:14:10.6]} 12. dxe5 {[%clk 0:15:18.4]} 12... Qxe5
{[%clk 0:14:15.5]} 13. g3 {[%clk 0:15:22.5]} 0-1